[Event "Titled Tuesday Blitz July 26 Late 2022"]
[White "Pakleza, Zbigniew"]
[Black "Melikyan, Gnel"]
[WhiteFideId "1119290"]
[BlackFideId "54109990"]
[WhiteElo "2467"]
[BlackElo "1772"]
[Result "1-0"]
[Round "06"]
[TimeControl "180+1"]
[Date "2022.07.26"]
[WhiteClock "0:00:11"]
[BlackClock "0:00:12"]

1. d4 {[%clk 0:03:00]}  Nf6 {[%clk 0:02:56]} 2. Nf3 {[%clk 0:03:00]}  d5 {[%clk 0:02:56]} 3. Bf4 {[%clk 0:03:01]}  c6 {[%clk 0:02:56]} 4. e3 {[%clk 0:03:00]}  Bf5 {[%clk 0:02:55]} 5. c4 {[%clk 0:03:00]}  dxc4 {[%clk 0:02:51]} 6. Bxc4 {[%clk 0:02:59]}  e6 {[%clk 0:02:51]} 7. Nc3 {[%clk 0:02:57]}  Bd6 {[%clk 0:02:48]} 8. Bg3 {[%clk 0:02:40]}  O-O {[%clk 0:02:39]} 9. Qb3 {[%clk 0:02:37]}  b5 {[%clk 0:02:37]} 10. Be2 {[%clk 0:02:35]}  a5 {[%clk 0:02:25]} 11. a4 {[%clk 0:02:26]}  b4 {[%clk 0:02:23]} 12. Nb1 {[%clk 0:02:25]}  c5 {[%clk 0:02:08]} 13. dxc5 {[%clk 0:02:17]}  Bxc5 {[%clk 0:02:06]} 14. Nbd2 {[%clk 0:02:15]}  Qe7 {[%clk 0:01:55]} 15. O-O {[%clk 0:02:11]}  Nbd7 {[%clk 0:01:53]} 16. Rac1 {[%clk 0:02:00]}  Rfc8 {[%clk 0:01:51]} 17. Bb5 {[%clk 0:01:55]}  Nb6 {[%clk 0:01:38]} 18. Ne5 {[%clk 0:01:37]}  Bd6 {[%clk 0:01:19]} 19. Rfd1 {[%clk 0:01:07]}  Rxc1 {[%clk 0:01:07]} 20. Rxc1 {[%clk 0:01:08]}  Ne4 {[%clk 0:01:01]} 21. Nxe4 {[%clk 0:01:02]}  Bxe4 {[%clk 0:01:00]} 22. Qd1 {[%clk 0:00:42]}  Rd8 {[%clk 0:00:47]} 23. Qe2 {[%clk 0:00:31]}  h6 {[%clk 0:00:28]} 24. f3 {[%clk 0:00:23]}  Bb7 {[%clk 0:00:23]} 25. Rd1 {[%clk 0:00:10]}  Bc5 {[%clk 0:00:18]} 26. Bf2 {[%clk 0:00:07]}  Qf6 {[%clk 0:00:16]} 27. Rxd8+ {[%clk 0:00:06]}  Qxd8 {[%clk 0:00:17]} 28. Nd3 {[%clk 0:00:06]}  Be7 {[%clk 0:00:17]} 29. e4 {[%clk 0:00:06]}  Qc7 {[%clk 0:00:14]} 30. g3 {[%clk 0:00:05]}  Bd6 {[%clk 0:00:12]} 31. Qe3 {[%clk 0:00:04]}  Nd7 {[%clk 0:00:12]} 32. Qa7 {[%clk 0:00:04]}  Ne5 {[%clk 0:00:09]} 33. Nxe5 {[%clk 0:00:03]}  Bxe5 {[%clk 0:00:10]} 34. Kg2 {[%clk 0:00:03]}  g5 {[%clk 0:00:08]} 35. b3 {[%clk 0:00:02]}  Kh7 {[%clk 0:00:07]} 36. h3 {[%clk 0:00:02]}  Kg6 {[%clk 0:00:07]} 37. Qb6 {[%clk 0:00:02]}  Qxb6 {[%clk 0:00:03]} 38. Bxb6 {[%clk 0:00:03]}  f5 {[%clk 0:00:03]} 39. exf5+ {[%clk 0:00:03]}  exf5 {[%clk 0:00:04]} 40. Bxa5 {[%clk 0:00:03]}  g4 {[%clk 0:00:05]} 41. Be2 {[%clk 0:00:03]}  h5 {[%clk 0:00:04]} 42. Bxb4 {[%clk 0:00:03]}  Bd5 {[%clk 0:00:05]} 43. hxg4 {[%clk 0:00:03]}  hxg4 {[%clk 0:00:05]} 44. Bd1 {[%clk 0:00:03]}  gxf3+ {[%clk 0:00:05]} 45. Bxf3 {[%clk 0:00:04]}  Bxb3 {[%clk 0:00:05]} 46. a5 {[%clk 0:00:05]}  Bd4 {[%clk 0:00:06]} 47. a6 {[%clk 0:00:05]}  Bc4 {[%clk 0:00:06]} 48. Bb7 {[%clk 0:00:04]}  Kf6 {[%clk 0:00:06]} 49. Bd6 {[%clk 0:00:04]}  Ke6 {[%clk 0:00:06]} 50. Bb8 {[%clk 0:00:04]}  Kf6 {[%clk 0:00:03]} 51. a7 {[%clk 0:00:04]}  Bxa7 {[%clk 0:00:03]} 52. Bxa7 {[%clk 0:00:05]}  Kg5 {[%clk 0:00:04]} 53. Be3+ {[%clk 0:00:05]}  Kg6 {[%clk 0:00:04]} 54. Bf4 {[%clk 0:00:05]}  Bd3 {[%clk 0:00:04]} 55. Bf3 {[%clk 0:00:05]}  Bc2 {[%clk 0:00:05]} 56. Kf2 {[%clk 0:00:05]}  Bb1 {[%clk 0:00:05]} 57. Ke3 {[%clk 0:00:06]}  Bc2 {[%clk 0:00:06]} 58. Kd4 {[%clk 0:00:07]}  Bb1 {[%clk 0:00:07]} 59. Ke5 {[%clk 0:00:07]}  Bc2 {[%clk 0:00:07]} 60. Bd5 {[%clk 0:00:06]}  Bb1 {[%clk 0:00:08]} 61. Kd4 {[%clk 0:00:06]}  Bc2 {[%clk 0:00:08]} 62. Bc4 {[%clk 0:00:07]}  Bb1 {[%clk 0:00:08]} 63. Bd3 {[%clk 0:00:07]}  Ba2 {[%clk 0:00:08]} 64. Ke5 {[%clk 0:00:08]}  Bf7 {[%clk 0:00:06]} 65. Bxf5+ {[%clk 0:00:08]}  Kg7 {[%clk 0:00:07]} 66. g4 {[%clk 0:00:08]}  Be8 {[%clk 0:00:07]} 67. g5 {[%clk 0:00:08]}  Bh5 {[%clk 0:00:08]} 68. Be3 {[%clk 0:00:08]}  Be8 {[%clk 0:00:08]} 69. Kf4 {[%clk 0:00:09]}  Bf7 {[%clk 0:00:08]} 70. Bd4+ {[%clk 0:00:09]}  Kg8 {[%clk 0:00:08]} 71. g6 {[%clk 0:00:10]}  Be8 {[%clk 0:00:09]} 72. Kg5 {[%clk 0:00:10]}  Bxg6 {[%clk 0:00:08]} 73. Kxg6 {[%clk 0:00:09]}  Kf8 {[%clk 0:00:09]} 74. Bf6 {[%clk 0:00:09]}  Ke8 {[%clk 0:00:10]} 75. Be6 {[%clk 0:00:09]}  Kf8 {[%clk 0:00:10]} 76. Bd7 {[%clk 0:00:09]}  Kg8 {[%clk 0:00:10]} 77. Be7 {[%clk 0:00:09]}  Kh8 {[%clk 0:00:10]} 78. Bd6 {[%clk 0:00:09]}  Kg8 {[%clk 0:00:11]} 79. Be6+ {[%clk 0:00:10]}  Kh8 {[%clk 0:00:12]} 80. Be5# {[%clk 0:00:11]} 1-0


[Site "https://www.chess.com"]

[Event "Titled Tuesday Blitz July 26 Late 2022"]
[White "Pranav, V"]
[Black "Csonka, Balazs"]
[WhiteFideId "25060783"]
[BlackFideId "742910"]
[WhiteElo "2380"]
[BlackElo "2404"]
[Result "1-0"]
[Round "06"]
[TimeControl "180+1"]
[Date "2022.07.26"]
[WhiteClock "0:00:04"]
[BlackClock "0:00:01"]

1. e4 {[%clk 0:02:58]}  e5 {[%clk 0:02:58]} 2. Nf3 {[%clk 0:02:58]}  Nc6 {[%clk 0:02:58]} 3. Bb5 {[%clk 0:02:58]}  a6 {[%clk 0:02:54]} 4. Ba4 {[%clk 0:02:58]}  Nf6 {[%clk 0:02:53]} 5. O-O {[%clk 0:02:58]}  Be7 {[%clk 0:02:47]} 6. Re1 {[%clk 0:02:58]}  b5 {[%clk 0:02:46]} 7. Bb3 {[%clk 0:02:58]}  d6 {[%clk 0:02:46]} 8. c3 {[%clk 0:02:58]}  O-O {[%clk 0:02:46]} 9. d4 {[%clk 0:02:59]}  Bg4 {[%clk 0:02:43]} 10. Be3 {[%clk 0:02:58]}  Bh5 {[%clk 0:02:42]} 11. h3 {[%clk 0:02:56]}  exd4 {[%clk 0:02:40]} 12. cxd4 {[%clk 0:02:56]}  Na5 {[%clk 0:02:40]} 13. Bc2 {[%clk 0:02:56]}  Nc4 {[%clk 0:02:40]} 14. Bc1 {[%clk 0:02:54]}  d5 {[%clk 0:02:39]} 15. e5 {[%clk 0:02:53]}  Ne4 {[%clk 0:02:39]} 16. Bxe4 {[%clk 0:02:47]}  dxe4 {[%clk 0:02:39]} 17. Rxe4 {[%clk 0:02:48]}  c5 {[%clk 0:01:33]} 18. d5 {[%clk 0:02:29]}  f6 {[%clk 0:01:29]} 19. e6 {[%clk 0:01:46]}  Nb6 {[%clk 0:01:22]} 20. Nc3 {[%clk 0:00:56]}  b4 {[%clk 0:01:21]} 21. Na4 {[%clk 0:00:55]}  Nxa4 {[%clk 0:01:12]} 22. Qxa4 {[%clk 0:00:53]}  Qxd5 {[%clk 0:01:12]} 23. Re3 {[%clk 0:00:43]}  Rfd8 {[%clk 0:00:59]} 24. Nd2 {[%clk 0:00:39]}  c4 {[%clk 0:00:45]} 25. Re1 {[%clk 0:00:37]}  Be8 {[%clk 0:00:38]} 26. Qc2 {[%clk 0:00:35]}  Rac8 {[%clk 0:00:29]} 27. Nf1 {[%clk 0:00:35]}  Qd3 {[%clk 0:00:24]} 28. Qxd3 {[%clk 0:00:30]}  cxd3 {[%clk 0:00:25]} 29. Bd2 {[%clk 0:00:30]}  Rc2 {[%clk 0:00:24]} 30. b3 {[%clk 0:00:31]}  Rdc8 {[%clk 0:00:18]} 31. Red1 {[%clk 0:00:30]}  R2c6 {[%clk 0:00:13]} 32. Re1 {[%clk 0:00:27]}  Bg6 {[%clk 0:00:12]} 33. g4 {[%clk 0:00:20]}  f5 {[%clk 0:00:12]} 34. f4 {[%clk 0:00:18]}  Rc2 {[%clk 0:00:11]} 35. Rad1 {[%clk 0:00:15]}  h5 {[%clk 0:00:10]} 36. Ne3 {[%clk 0:00:15]}  hxg4 {[%clk 0:00:08]} 37. hxg4 {[%clk 0:00:16]}  fxg4 {[%clk 0:00:08]} 38. f5 {[%clk 0:00:16]}  Bh5 {[%clk 0:00:06]} 39. Nd5 {[%clk 0:00:16]}  Bc5+ {[%clk 0:00:05]} 40. Be3 {[%clk 0:00:10]}  Kf8 {[%clk 0:00:03]} 41. f6 {[%clk 0:00:07]}  gxf6 {[%clk 0:00:03]} 42. Bxc5+ {[%clk 0:00:04]}  R8xc5 {[%clk 0:00:04]} 43. e7+ {[%clk 0:00:04]}  Kg7 {[%clk 0:00:04]} 44. Nf4 {[%clk 0:00:04]}  Bf7 {[%clk 0:00:03]} 45. Ne6+ {[%clk 0:00:03]}  Kg6 {[%clk 0:00:01]} 46. Nxc5 {[%clk 0:00:04]}  Rxc5 {[%clk 0:00:01]} 47. e8=Q {[%clk 0:00:04]}  Bxe8 {[%clk 0:00:02]} 48. Rxe8 {[%clk 0:00:05]}  Rc2 {[%clk 0:00:02]} 49. Rxd3 {[%clk 0:00:05]}  f5 {[%clk 0:00:03]} 50. Rf8 {[%clk 0:00:04]}  Rxa2 {[%clk 0:00:02]} 51. Rd6+ {[%clk 0:00:05]}  Kg5 {[%clk 0:00:02]} 52. Rd5 {[%clk 0:00:06]}  Kh4 {[%clk 0:00:02]} 53. Rfxf5 {[%clk 0:00:06]}  Rb2 {[%clk 0:00:02]} 54. Rd3 {[%clk 0:00:06]}  Rb1+ {[%clk 0:00:02]} 55. Rf1 {[%clk 0:00:06]}  Rb2 {[%clk 0:00:02]} 56. Rf2 {[%clk 0:00:06]}  Rb1+ {[%clk 0:00:02]} 57. Kg2 {[%clk 0:00:07]}  a5 {[%clk 0:00:02]} 58. Rg3 {[%clk 0:00:03]}  Rd1 {[%clk 0:00:01]} 59. Kh2 {[%clk 0:00:03]}  Re1 {[%clk 0:00:01]} 60. Rf4 {[%clk 0:00:03]}  Re2+ {[%clk 0:00:01]} 61. Rg2 {[%clk 0:00:04]}  Re3 {[%clk 0:00:01]} 62. Rfxg4+ {[%clk 0:00:03]}  Kh5 {[%clk 0:00:01]} 63. R4g3 {[%clk 0:00:04]} 1-0


[Site "https://www.chess.com"]

[Event "Titled Tuesday Blitz July 26 Late 2022"]
[White "Przybylski, Wojciech"]
[Black "Vlassov, Nikolai"]
[WhiteFideId "1117599"]
[BlackFideId "4103360"]
[WhiteElo "2133"]
[BlackElo "2324"]
[Result "0-1"]
[Round "06"]
[TimeControl "180+1"]
[Date "2022.07.26"]
[WhiteClock "0:00:01"]
[BlackClock "0:00:14"]

1. e4 {[%clk 0:02:56]}  c5 {[%clk 0:02:59]} 2. Nf3 {[%clk 0:02:56]}  d6 {[%clk 0:03:00]} 3. Bb5+ {[%clk 0:02:55]}  Nd7 {[%clk 0:02:59]} 4. O-O {[%clk 0:02:54]}  a6 {[%clk 0:02:59]} 5. Bc4 {[%clk 0:02:53]}  Ngf6 {[%clk 0:02:57]} 6. Re1 {[%clk 0:02:52]}  b5 {[%clk 0:02:54]} 7. Bf1 {[%clk 0:02:52]}  Bb7 {[%clk 0:02:55]} 8. d3 {[%clk 0:02:50]}  g6 {[%clk 0:02:53]} 9. a4 {[%clk 0:02:49]}  Bg7 {[%clk 0:02:53]} 10. Nc3 {[%clk 0:02:48]}  b4 {[%clk 0:02:49]} 11. Ne2 {[%clk 0:02:48]}  O-O {[%clk 0:02:49]} 12. h3 {[%clk 0:02:30]}  e5 {[%clk 0:02:48]} 13. Ng3 {[%clk 0:02:28]}  h6 {[%clk 0:02:43]} 14. c3 {[%clk 0:02:25]}  bxc3 {[%clk 0:02:39]} 15. bxc3 {[%clk 0:02:24]}  Ne8 {[%clk 0:02:19]} 16. Bd2 {[%clk 0:02:09]}  Bc6 {[%clk 0:02:18]} 17. Qc2 {[%clk 0:02:00]}  f5 {[%clk 0:02:15]} 18. Nh2 {[%clk 0:01:54]}  f4 {[%clk 0:02:13]} 19. Ne2 {[%clk 0:01:50]}  g5 {[%clk 0:02:12]} 20. d4 {[%clk 0:01:48]}  Ndf6 {[%clk 0:02:00]} 21. f3 {[%clk 0:01:40]}  h5 {[%clk 0:01:47]} 22. Qb3+ {[%clk 0:01:30]}  Kh7 {[%clk 0:01:45]} 23. Reb1 {[%clk 0:01:25]}  g4 {[%clk 0:01:38]} 24. d5 {[%clk 0:01:22]}  Bd7 {[%clk 0:01:37]} 25. Qc2 {[%clk 0:01:14]}  g3 {[%clk 0:01:34]} 26. Bxf4 {[%clk 0:01:01]}  exf4 {[%clk 0:01:16]} 27. e5+ {[%clk 0:00:44]}  Kg8 {[%clk 0:01:16]} 28. e6 {[%clk 0:00:41]}  gxh2+ {[%clk 0:01:15]} 29. Kxh2 {[%clk 0:00:40]}  Nxd5 {[%clk 0:00:32]} 30. exd7 {[%clk 0:00:36]}  Qxd7 {[%clk 0:00:32]} 31. Qb3 {[%clk 0:00:25]}  Qf7 {[%clk 0:00:32]} 32. Nc1 {[%clk 0:00:11]}  Ne3 {[%clk 0:00:31]} 33. Qxf7+ {[%clk 0:00:05]}  Rxf7 {[%clk 0:00:31]} 34. Rb6 {[%clk 0:00:04]}  Nxf1+ {[%clk 0:00:30]} 35. Kg1 {[%clk 0:00:05]}  Ne3 {[%clk 0:00:28]} 36. Ne2 {[%clk 0:00:05]}  d5 {[%clk 0:00:24]} 37. Rab1 {[%clk 0:00:05]}  d4 {[%clk 0:00:24]} 38. cxd4 {[%clk 0:00:05]}  cxd4 {[%clk 0:00:24]} 39. R1b3 {[%clk 0:00:05]}  Rd8 {[%clk 0:00:19]} 40. Rd3 {[%clk 0:00:03]}  Rc7 {[%clk 0:00:18]} 41. Nxf4 {[%clk 0:00:03]}  Rc1+ {[%clk 0:00:18]} 42. Kf2 {[%clk 0:00:02]}  Kh7 {[%clk 0:00:16]} 43. Nxh5 {[%clk 0:00:01]}  Bh6 {[%clk 0:00:14]} 0-1


[Site "https://www.chess.com"]

[Event "Titled Tuesday Blitz July 26 Late 2022"]
[White "Sarana, Alexey"]
[Black "Weetik, Vjacheslav"]
[WhiteFideId "24133795"]
[BlackFideId "4153472"]
[WhiteElo "2666"]
[BlackElo "2469"]
[Result "1/2-1/2"]
[Round "06"]
[TimeControl "180+1"]
[Date "2022.07.26"]
[WhiteClock "0:00:03"]
[BlackClock "0:00:08"]

1. c4 {[%clk 0:03:00]}  e6 {[%clk 0:02:53]} 2. Nc3 {[%clk 0:03:00]}  d5 {[%clk 0:02:52]} 3. d4 {[%clk 0:03:00]}  Nf6 {[%clk 0:02:53]} 4. cxd5 {[%clk 0:03:00]}  exd5 {[%clk 0:02:53]} 5. Bg5 {[%clk 0:03:01]}  c6 {[%clk 0:02:52]} 6. e3 {[%clk 0:03:01]}  Be7 {[%clk 0:02:52]} 7. Bd3 {[%clk 0:03:02]}  Nbd7 {[%clk 0:02:52]} 8. Nf3 {[%clk 0:02:58]}  O-O {[%clk 0:02:45]} 9. O-O {[%clk 0:02:52]}  Re8 {[%clk 0:02:44]} 10. Qc2 {[%clk 0:02:52]}  Nf8 {[%clk 0:02:22]} 11. Ne5 {[%clk 0:02:52]}  N6d7 {[%clk 0:02:18]} 12. Bxe7 {[%clk 0:02:46]}  Qxe7 {[%clk 0:02:16]} 13. f4 {[%clk 0:02:47]}  f6 {[%clk 0:01:59]} 14. Ng4 {[%clk 0:02:47]}  Nb6 {[%clk 0:01:53]} 15. f5 {[%clk 0:02:27]}  h5 {[%clk 0:01:48]} 16. Nf2 {[%clk 0:02:26]}  Qxe3 {[%clk 0:01:47]} 17. Rae1 {[%clk 0:02:26]}  Qxe1 {[%clk 0:01:46]} 18. Rxe1 {[%clk 0:02:27]}  Rxe1+ {[%clk 0:01:46]} 19. Bf1 {[%clk 0:02:25]}  Bd7 {[%clk 0:01:39]} 20. b3 {[%clk 0:02:14]}  Rae8 {[%clk 0:01:33]} 21. g3 {[%clk 0:02:09]}  Nc8 {[%clk 0:01:23]} 22. Kg2 {[%clk 0:02:06]}  Nd6 {[%clk 0:01:23]} 23. Bd3 {[%clk 0:02:07]}  R1e3 {[%clk 0:01:04]} 24. Ncd1 {[%clk 0:01:50]}  Rxd3 {[%clk 0:00:56]} 25. Qxd3 {[%clk 0:01:49]}  Bxf5 {[%clk 0:00:56]} 26. Qd2 {[%clk 0:01:47]}  Ne6 {[%clk 0:00:45]} 27. Qb4 {[%clk 0:01:44]}  Nb5 {[%clk 0:00:36]} 28. a4 {[%clk 0:01:38]}  a5 {[%clk 0:00:36]} 29. Qxa5 {[%clk 0:01:36]}  Nbxd4 {[%clk 0:00:36]} 30. Qb6 {[%clk 0:01:36]}  Re7 {[%clk 0:00:29]} 31. a5 {[%clk 0:01:35]}  g5 {[%clk 0:00:25]} 32. Qb4 {[%clk 0:01:24]}  Kf7 {[%clk 0:00:24]} 33. h3 {[%clk 0:01:18]}  Nb5 {[%clk 0:00:18]} 34. Ne3 {[%clk 0:01:09]}  Bg6 {[%clk 0:00:18]} 35. Nxd5 {[%clk 0:01:08]}  cxd5 {[%clk 0:00:12]} 36. Qxb5 {[%clk 0:01:08]}  d4 {[%clk 0:00:13]} 37. Qc4 {[%clk 0:01:08]}  Rc7 {[%clk 0:00:11]} 38. Qd5 {[%clk 0:01:05]}  Ke7 {[%clk 0:00:11]} 39. Qb5 {[%clk 0:00:59]}  Rd7 {[%clk 0:00:05]} 40. Nd3 {[%clk 0:00:56]}  Be4+ {[%clk 0:00:03]} 41. Kf2 {[%clk 0:00:54]}  Bc6 {[%clk 0:00:02]} 42. Qb4+ {[%clk 0:00:52]}  Kf7 {[%clk 0:00:02]} 43. Qc4 {[%clk 0:00:52]}  Bd5 {[%clk 0:00:02]} 44. Qb5 {[%clk 0:00:51]}  Bc6 {[%clk 0:00:02]} 45. Qf5 {[%clk 0:00:51]}  Ke7 {[%clk 0:00:03]} 46. b4 {[%clk 0:00:50]}  Bd5 {[%clk 0:00:03]} 47. b5 {[%clk 0:00:47]}  Bc4 {[%clk 0:00:03]} 48. Nb2 {[%clk 0:00:39]}  Bd5 {[%clk 0:00:03]} 49. b6 {[%clk 0:00:25]}  Kd6 {[%clk 0:00:04]} 50. Qxf6 {[%clk 0:00:23]}  Re7 {[%clk 0:00:03]} 51. Nd3 {[%clk 0:00:22]}  Bc4 {[%clk 0:00:03]} 52. Qe5+ {[%clk 0:00:20]}  Kd7 {[%clk 0:00:03]} 53. Nc5+ {[%clk 0:00:11]}  Nxc5 {[%clk 0:00:03]} 54. Qxd4+ {[%clk 0:00:11]}  Kc6 {[%clk 0:00:02]} 55. Qxc4 {[%clk 0:00:12]}  Re4 {[%clk 0:00:03]} 56. Qf7 {[%clk 0:00:12]}  g4 {[%clk 0:00:03]} 57. hxg4 {[%clk 0:00:03]}  hxg4 {[%clk 0:00:04]} 58. Qg6+ {[%clk 0:00:02]}  Kb5 {[%clk 0:00:05]} 59. Qf5 {[%clk 0:00:03]}  Ra4 {[%clk 0:00:05]} 60. Qd5 {[%clk 0:00:02]}  Ra3 {[%clk 0:00:05]} 61. Kf1 {[%clk 0:00:02]}  Ra1+ {[%clk 0:00:05]} 62. Ke2 {[%clk 0:00:02]}  Ra4 {[%clk 0:00:06]} 63. Qf7 {[%clk 0:00:02]}  Rxa5 {[%clk 0:00:05]} 64. Qc7 {[%clk 0:00:03]}  Ra4 {[%clk 0:00:06]} 65. Ke3 {[%clk 0:00:03]}  Rc4 {[%clk 0:00:06]} 66. Qb8 {[%clk 0:00:02]}  Re4+ {[%clk 0:00:06]} 67. Kd2 {[%clk 0:00:02]}  Kxb6 {[%clk 0:00:07]} 68. Qd6+ {[%clk 0:00:02]}  Kb5 {[%clk 0:00:07]} 69. Qb8 {[%clk 0:00:03]}  Rc4 {[%clk 0:00:08]} 70. Qe8+ {[%clk 0:00:03]}  Kb4 {[%clk 0:00:08]} 71. Qe7 {[%clk 0:00:03]}  b5 {[%clk 0:00:08]} 72. Qg7 {[%clk 0:00:02]}  Ne4+ {[%clk 0:00:09]} 73. Kd3 {[%clk 0:00:02]}  Nc5+ {[%clk 0:00:09]} 74. Kd2 {[%clk 0:00:02]}  Nb3+ {[%clk 0:00:08]} 75. Kd3 {[%clk 0:00:02]}  Rd4+ {[%clk 0:00:09]} 76. Ke2 {[%clk 0:00:02]}  Kc4 {[%clk 0:00:09]} 77. Qf7+ {[%clk 0:00:02]}  Kc3 {[%clk 0:00:09]} 78. Qc7+ {[%clk 0:00:03]}  Kb2 {[%clk 0:00:09]} 79. Qe5 {[%clk 0:00:02]}  b4 {[%clk 0:00:09]} 80. Ke3 {[%clk 0:00:03]}  Kc2 {[%clk 0:00:08]} 81. Qf5+ {[%clk 0:00:03]}  Kc3 {[%clk 0:00:08]} 82. Qf6 {[%clk 0:00:03]}  Kc2 {[%clk 0:00:08]} 83. Qg6+ {[%clk 0:00:04]}  Kb2 {[%clk 0:00:08]} 84. Qg7 {[%clk 0:00:04]}  Ka3 {[%clk 0:00:08]} 85. Qa7+ {[%clk 0:00:04]}  Kb2 {[%clk 0:00:08]} 86. Qg7 {[%clk 0:00:04]}  Kb1 {[%clk 0:00:08]} 87. Qh7+ {[%clk 0:00:04]}  Kc1 {[%clk 0:00:08]} 88. Qc7+ {[%clk 0:00:03]}  Kb2 {[%clk 0:00:08]} 89. Qg7 {[%clk 0:00:03]} 1/2-1/2


[Site "https://www.chess.com"]

[Event "Titled Tuesday Blitz July 26 Late 2022"]
[White "Shohat, Yotam"]
[Black "Sarkar, Justin"]
[WhiteFideId "2813955"]
[BlackFideId "2010011"]
[WhiteElo "2119"]
[BlackElo "2006"]
[Result "1/2-1/2"]
[Round "06"]
[TimeControl "180+1"]
[Date "2022.07.27"]
[WhiteClock "0:00:06"]
[BlackClock "0:00:03"]

1. c4 {[%clk 0:00:18]}  e5 {[%clk 0:02:57]} 2. Nc3 {[%clk 0:00:18]}  Bb4 {[%clk 0:02:55]} 3. g3 {[%clk 0:00:18]}  Bxc3 {[%clk 0:02:54]} 4. dxc3 {[%clk 0:00:19]}  d6 {[%clk 0:02:52]} 5. Bg2 {[%clk 0:00:19]}  Ne7 {[%clk 0:02:40]} 6. e4 {[%clk 0:00:19]}  O-O {[%clk 0:02:38]} 7. Ne2 {[%clk 0:00:08]}  Nbc6 {[%clk 0:02:35]} 8. O-O {[%clk 0:00:07]}  f5 {[%clk 0:02:29]} 9. exf5 {[%clk 0:00:07]}  Bxf5 {[%clk 0:02:28]} 10. h3 {[%clk 0:00:07]}  Qd7 {[%clk 0:02:17]} 11. g4 {[%clk 0:00:06]}  Be6 {[%clk 0:02:08]} 12. b3 {[%clk 0:00:06]}  Ng6 {[%clk 0:02:04]} 13. f4 {[%clk 0:00:03]}  exf4 {[%clk 0:01:59]} 14. Nxf4 {[%clk 0:00:04]}  Nxf4 {[%clk 0:01:59]} 15. Bxf4 {[%clk 0:00:05]}  Rf6 {[%clk 0:01:40]} 16. Qd3 {[%clk 0:00:05]}  Raf8 {[%clk 0:01:38]} 17. Bg3 {[%clk 0:00:05]}  Rxf1+ {[%clk 0:01:32]} 18. Rxf1 {[%clk 0:00:06]}  Rxf1+ {[%clk 0:01:31]} 19. Qxf1 {[%clk 0:00:07]}  Qe7 {[%clk 0:01:18]} 20. Bd5 {[%clk 0:00:07]}  Bxd5 {[%clk 0:01:13]} 21. cxd5 {[%clk 0:00:07]}  Ne5 {[%clk 0:01:13]} 22. Qe2 {[%clk 0:00:08]}  Qg5 {[%clk 0:00:55]} 23. Kg2 {[%clk 0:00:07]}  h6 {[%clk 0:00:36]} 24. c4 {[%clk 0:00:07]}  Kh7 {[%clk 0:00:30]} 25. a4 {[%clk 0:00:07]}  Ng6 {[%clk 0:00:23]} 26. a5 {[%clk 0:00:07]}  Nf4+ {[%clk 0:00:18]} 27. Bxf4 {[%clk 0:00:07]}  Qxf4 {[%clk 0:00:18]} 28. Qd3+ {[%clk 0:00:08]}  g6 {[%clk 0:00:18]} 29. b4 {[%clk 0:00:08]}  Kg7 {[%clk 0:00:15]} 30. b5 {[%clk 0:00:08]}  Qe5 {[%clk 0:00:12]} 31. Kf3 {[%clk 0:00:08]}  h5 {[%clk 0:00:11]} 32. gxh5 {[%clk 0:00:06]}  gxh5 {[%clk 0:00:10]} 33. Kg2 {[%clk 0:00:06]}  h4 {[%clk 0:00:09]} 34. Qf3 {[%clk 0:00:03]}  Qb2+ {[%clk 0:00:08]} 35. Qf2 {[%clk 0:00:04]}  Qc3 {[%clk 0:00:06]} 36. Qxh4 {[%clk 0:00:03]}  Qd2+ {[%clk 0:00:04]} 37. Kf3 {[%clk 0:00:04]}  Qd3+ {[%clk 0:00:04]} 38. Kg4 {[%clk 0:00:04]}  Qxc4+ {[%clk 0:00:04]} 39. Kg3 {[%clk 0:00:05]}  Qxd5 {[%clk 0:00:03]} 40. Qg4+ {[%clk 0:00:05]}  Kf7 {[%clk 0:00:03]} 41. Qd7+ {[%clk 0:00:05]}  Kf6 {[%clk 0:00:04]} 42. Qxc7 {[%clk 0:00:05]}  Qd3+ {[%clk 0:00:04]} 43. Kg2 {[%clk 0:00:04]}  Qe2+ {[%clk 0:00:04]} 44. Kg3 {[%clk 0:00:04]}  Qe3+ {[%clk 0:00:04]} 45. Kg2 {[%clk 0:00:05]}  Qe2+ {[%clk 0:00:03]} 46. Kg1 {[%clk 0:00:05]}  Qe1+ {[%clk 0:00:03]} 47. Kg2 {[%clk 0:00:06]}  Qe2+ {[%clk 0:00:03]} 1/2-1/2


[Site "https://www.chess.com"]

[Event "Titled Tuesday Blitz July 26 Late 2022"]
[White "Stalri"]
[Black "Estrada Nieto, Julian"]
[BlackFideId "5101018"]
[WhiteElo "2329"]
[BlackElo "2252"]
[Result "1-0"]
[Round "06"]
[TimeControl "180+1"]
[Date "2022.07.27"]
[WhiteClock "0:00:07"]
[BlackClock "0:00:04"]

1. d4 {[%clk 0:02:54]}  d5 {[%clk 0:02:59]} 2. c4 {[%clk 0:02:53]}  dxc4 {[%clk 0:03:00]} 3. e4 {[%clk 0:02:53]}  e5 {[%clk 0:03:00]} 4. Nf3 {[%clk 0:02:50]}  exd4 {[%clk 0:03:00]} 5. Bxc4 {[%clk 0:02:50]}  Nc6 {[%clk 0:03:00]} 6. O-O {[%clk 0:02:49]}  Be6 {[%clk 0:03:01]} 7. Bxe6 {[%clk 0:02:35]}  fxe6 {[%clk 0:03:02]} 8. Qb3 {[%clk 0:02:35]}  Qd7 {[%clk 0:03:02]} 9. Qxb7 {[%clk 0:02:29]}  Rb8 {[%clk 0:03:02]} 10. Qa6 {[%clk 0:02:29]}  Nf6 {[%clk 0:03:03]} 11. Nbd2 {[%clk 0:02:27]}  Bd6 {[%clk 0:03:03]} 12. Re1 {[%clk 0:02:22]}  Ng4 {[%clk 0:02:51]} 13. h3 {[%clk 0:02:12]}  Nge5 {[%clk 0:02:50]} 14. Nxe5 {[%clk 0:02:08]}  Nxe5 {[%clk 0:02:48]} 15. Nc4 {[%clk 0:02:03]}  O-O {[%clk 0:02:39]} 16. Rb1 {[%clk 0:01:37]}  Nd3 {[%clk 0:02:23]} 17. Rf1 {[%clk 0:01:25]}  Nb4 {[%clk 0:01:59]} 18. Qa3 {[%clk 0:01:08]}  c5 {[%clk 0:01:40]} 19. Bd2 {[%clk 0:01:04]}  Bf4 {[%clk 0:01:18]} 20. Bxb4 {[%clk 0:00:59]}  Rxb4 {[%clk 0:01:18]} 21. Qd3 {[%clk 0:00:56]}  Qb5 {[%clk 0:01:11]} 22. b3 {[%clk 0:00:56]}  Qd7 {[%clk 0:01:01]} 23. g3 {[%clk 0:00:55]}  Bb8 {[%clk 0:00:54]} 24. f4 {[%clk 0:00:55]}  Qf7 {[%clk 0:00:49]} 25. Rf3 {[%clk 0:00:53]}  Qh5 {[%clk 0:00:47]} 26. Kg2 {[%clk 0:00:52]}  Rb7 {[%clk 0:00:47]} 27. Rbf1 {[%clk 0:00:51]}  Rbf7 {[%clk 0:00:47]} 28. e5 {[%clk 0:00:48]}  g5 {[%clk 0:00:35]} 29. g4 {[%clk 0:00:42]}  Qh4 {[%clk 0:00:29]} 30. f5 {[%clk 0:00:42]}  exf5 {[%clk 0:00:21]} 31. Rxf5 {[%clk 0:00:42]}  Rxf5 {[%clk 0:00:17]} 32. Rxf5 {[%clk 0:00:41]}  Rxf5 {[%clk 0:00:12]} 33. Qxf5 {[%clk 0:00:41]}  Qh6 {[%clk 0:00:12]} 34. e6 {[%clk 0:00:26]}  Qg6 {[%clk 0:00:10]} 35. Kf3 {[%clk 0:00:20]}  Kg7 {[%clk 0:00:07]} 36. Ke4 {[%clk 0:00:18]}  Qf6 {[%clk 0:00:05]} 37. a4 {[%clk 0:00:14]}  Bc7 {[%clk 0:00:04]} 38. a5 {[%clk 0:00:14]}  h6 {[%clk 0:00:05]} 39. a6 {[%clk 0:00:14]}  Qd8 {[%clk 0:00:04]} 40. Qd5 {[%clk 0:00:13]}  Qf6 {[%clk 0:00:04]} 41. Qd7+ {[%clk 0:00:13]}  Kg6 {[%clk 0:00:04]} 42. Qxc7 {[%clk 0:00:12]}  d3 {[%clk 0:00:04]} 43. Kxd3 {[%clk 0:00:11]}  Qd4+ {[%clk 0:00:05]} 44. Kc2 {[%clk 0:00:10]}  Qe4+ {[%clk 0:00:05]} 45. Kb2 {[%clk 0:00:09]}  Qg2+ {[%clk 0:00:04]} 46. Ka3 {[%clk 0:00:09]}  Qd5 {[%clk 0:00:04]} 47. e7 {[%clk 0:00:06]}  Kf7 {[%clk 0:00:04]} 48. Qd6 {[%clk 0:00:06]}  Qe6 {[%clk 0:00:03]} 49. Qxe6+ {[%clk 0:00:05]}  Kxe6 {[%clk 0:00:04]} 50. e8=Q+ {[%clk 0:00:06]}  Kd5 {[%clk 0:00:05]} 51. Qe5+ {[%clk 0:00:06]}  Kc6 {[%clk 0:00:05]} 52. Qd6+ {[%clk 0:00:07]}  Kb5 {[%clk 0:00:05]} 53. Ne5 {[%clk 0:00:07]}  c4 {[%clk 0:00:05]} 54. bxc4+ {[%clk 0:00:07]}  Ka5 {[%clk 0:00:05]} 55. Nd3 {[%clk 0:00:07]}  h5 {[%clk 0:00:05]} 56. Nb4 {[%clk 0:00:07]}  hxg4 {[%clk 0:00:04]} 57. Qc7# {[%clk 0:00:07]} 1-0


[Site "https://www.chess.com"]